fUST/lending_fUST_20250609
["ID","MTS","AMOUNT","RATE_DAILY","PERIOD"]
[365069992,1749438648900,-151.0,0.000245,7]
[365069993,1749438648910,-3000.0,0.0002451,2]
[365069994,1749438648920,-3000.0,0.0002452,2]
[365069995,1749438648930,-3000.0,0.0002453,2]
[365069996,1749438648940,-215.0738,0.00024533,2]
[365069997,1749438648950,-3000.0,0.0002454,2]
[365069998,1749438648959,-153.0,0.00024548,2]
[365069999,1749438648969,-153.0,0.00024548,2]
[365070000,1749438648979,-153.0,0.00024548,2]
[365070001,1749438648989,-153.0,0.00024548,2]
[365070002,1749438648999,-573.244939,0.00024548,2]
[365070003,1749438649009,-158.7201836,0.00024548,2]
[365070004,1749438649019,-573.244939,0.00024548,2]
[365070005,1749438649029,-158.7201836,0.00024548,2]
[365070006,1749438649039,-176.7945793,0.00024548,2]
[365070007,1749438649049,-573.244939,0.00024548,2]
[365070008,1749438649059,-153.0,0.00024548,2]
[365070009,1749438649068,-176.979402,0.00024548,2]
[365070010,1749438649079,-158.7201836,0.00024548,2]
[365070011,1749438649088,-573.244939,0.00024548,2]
[365070012,1749438649098,-153.0,0.00024548,2]
[365070013,1749438649108,-158.7201836,0.00024548,2]
[365070014,1749438649118,-153.0,0.00024548,2]
[365070015,1749438649128,-158.7201836,0.00024548,2]
[365070016,1749438649137,-153.0,0.00024548,2]
[365070017,1749438649237,-158.7201836,0.00024548,2]
[365070018,1749438649248,-364.9269501,0.00024548,2]
[365070019,1749438649261,-729.8539002,0.00024548,2]
[365070020,1749438649271,-371.3541853,0.00024548,2]
[365070021,1749438649281,-430.4745419,0.00024548,2]
[365070022,1749438649291,-454.6417149,0.00024548,2]
[365070023,1749438649302,-364.9269501,0.00024548,2]
[365070024,1749438649312,-153.0,0.00024548,2]
[365070025,1749438649322,-153.0,0.00024548,2]
[365070026,1749438649335,-153.0,0.00024548,2]
[365070027,1749438649346,-153.0,0.00024548,2]
[365070028,1749438649355,-153.0,0.00024548,2]
[365070029,1749438649365,-153.0,0.00024548,2]
[365070030,1749438649375,-153.0,0.00024548,2]
[365070031,1749438649386,-153.0,0.00024548,2]
[365070032,1749438649397,-153.0,0.00024548,2]
[365070033,1749438649406,-153.0,0.00024548,2]
[365070034,1749438649417,-153.0,0.00024548,2]
[365070035,1749438649427,-153.0,0.00024548,2]
[365070036,1749438649437,-153.0,0.00024548,2]
[365070037,1749438649447,-153.0,0.00024548,2]
[365070038,1749438649458,-153.0,0.00024548,2]
[365070039,1749438649468,-153.0,0.00024548,2]
[365070040,1749438649477,-153.0,0.00024548,2]
[365070041,1749438649488,-153.0,0.00024548,2]
[365070042,1749438649497,-153.0,0.00024548,2]
[365070043,1749438649507,-153.0,0.00024548,2]
[365070044,1749438649517,-153.0,0.00024548,2]
[365070045,1749438649527,-153.0,0.00024548,2]
[365070046,1749438649538,-153.0,0.00024548,2]
[365070047,1749438649548,-153.0,0.00024548,2]
[365070048,1749438649558,-153.0,0.00024548,2]
[365070049,1749438649568,-153.0,0.00024548,2]
[365070050,1749438649578,-153.0,0.00024548,2]
[365070051,1749438649588,-153.0,0.00024548,2]
[365070052,1749438649597,-153.0,0.00024548,2]
[365070053,1749438649606,-176.7945792,0.00024548,2]
[365070054,1749438649616,-573.244939,0.00024548,2]
[365070055,1749438649625,-158.7201836,0.00024548,2]
[365070056,1749438649636,-153.0,0.00024548,2]
[365070057,1749438649646,-153.0,0.00024548,2]
[365070058,1749438649656,-573.244939,0.00024548,2]
[365070059,1749438649665,-153.0,0.00024548,2]
[365070060,1749438649675,-158.7201836,0.00024548,2]
[365070061,1749438649685,-176.7945792,0.00024548,2]
[365070062,1749438649695,-153.0,0.00024548,2]
[365070063,1749438649704,-573.244939,0.00024548,2]
[365070064,1749438649714,-153.0,0.00024548,2]
[365070065,1749438649724,-158.7201836,0.00024548,2]
[365070066,1749438649734,-153.0,0.00024548,2]
[365070067,1749438649743,-176.7945792,0.00024548,2]
[365070068,1749438649753,-153.0,0.00024548,2]
[365070069,1749438649763,-573.244939,0.00024548,2]
[365070070,1749438649773,-176.7945792,0.00024548,2]
[365070071,1749438649782,-158.7201836,0.00024548,2]
[365070072,1749438649792,-158.7201836,0.00024548,2]
[365070073,1749438649802,-364.9269501,0.00024548,2]
[365070074,1749438649812,-364.9269501,0.00024548,2]
[365070075,1749438649821,-364.9269501,0.00024548,2]
[365070076,1749438649831,-364.9269501,0.00024548,2]
[365070077,1749438649840,-364.9269501,0.00024548,2]
[365070078,1749438649851,-364.9269501,0.00024548,2]
[365070079,1749438649861,-364.9269501,0.00024548,2]
[365070080,1749438649871,-179.4069173,0.00024548,2]
[365070081,1749438649881,-3000.0,0.0002455,2]
[365070082,1749438649891,-151.0,0.00024558,7]
[365070083,1749438649902,-222.237001,0.00024558,7]
[365070084,1749438649912,-151.0,0.00024558,7]
[365070085,1749438649922,-151.756873,0.00024558,7]
[365070086,1749438649932,-151.0,0.00024558,7]
[365070087,1749438649942,-151.0,0.00024558,7]
[365070088,1749438649953,-151.0,0.00024558,7]
[365070089,1749438649963,-151.0,0.00024558,7]
[365070090,1749438649974,-151.0,0.00024558,7]
[365070091,1749438649986,-154.696438,0.00024558,7]
[365070092,1749438649996,-229.686779,0.00024558,7]
[365070093,1749438650006,-229.686779,0.00024558,7]
[365070094,1749438650015,-229.686779,0.00024558,7]
[365070095,1749438650032,-229.686779,0.00024558,7]
[365070096,1749438650051,-229.686779,0.00024558,7]
[365070097,1749438650069,-229.686779,0.00024558,7]
[365070098,1749438650084,-229.686779,0.00024558,7]
[365070099,1749438650101,-229.686779,0.00024558,7]
[365070100,1749438650118,-229.686779,0.00024558,7]
[365070101,1749438650134,-229.686779,0.00024558,7]
[365070102,1749438650152,-229.686779,0.00024558,7]
[365070103,1749438650169,-229.686779,0.00024558,7]
[365070104,1749438650184,-229.686779,0.00024558,7]
[365070105,1749438650200,-229.686779,0.00024558,7]
[365070106,1749438650215,-229.686779,0.00024558,7]
[365070107,1749438650231,-229.686779,0.00024558,7]
[365070108,1749438650246,-229.686779,0.00024558,7]
[365070109,1749438650260,-229.686779,0.00024558,7]
[365070110,1749438650274,-229.686779,0.00024558,7]
[365070111,1749438650290,-229.686778,0.00024558,7]
[365070112,1749438650307,-152.261316,0.00024558,7]
[365070113,1749438650323,-151.0,0.00024558,7]
[365070114,1749438650340,-151.0,0.00024558,7]
[365070115,1749438650358,-151.0,0.00024558,7]
[365070116,1749438650371,-154.854859,0.00024558,7]
[365070117,1749438650383,-151.0,0.00024558,7]
[365070118,1749438650397,-151.0,0.00024558,7]
[365070119,1749438650414,-151.0,0.00024558,7]
[365070120,1749438650429,-151.0,0.00024558,7]
[365070121,1749438650442,-151.0,0.00024558,7]
[365070122,1749438650455,-154.043439,0.00024558,7]
[365070123,1749438650472,-151.652065,0.00024558,7]
[365070124,1749438650484,-151.0,0.00024558,7]
[365070125,1749438650497,-151.0,0.00024558,7]
[365070126,1749438650510,-151.0,0.00024558,7]
[365070127,1749438650524,-151.0,0.00024558,7]
[365070128,1749438650537,-151.0,0.00024558,7]
[365070129,1749438650550,-151.0,0.00024558,7]
[365070130,1749438650565,-151.0,0.00024558,7]
[365070131,1749438650578,-151.0,0.00024558,7]
[365070132,1749438650592,-151.0,0.00024558,7]
[365070133,1749438650605,-151.0,0.00024558,7]
[365070134,1749438650618,-151.0,0.00024558,7]
[365070135,1749438650631,-151.0,0.00024558,7]
[365070136,1749438650644,-151.0,0.00024558,7]
[365070137,1749438650658,-151.0,0.00024558,7]
[365070138,1749438650670,-151.0,0.00024558,7]
[365070139,1749438650683,-151.0,0.00024558,7]
[365070140,1749438650698,-152.818222,0.00024558,7]
[365070141,1749438650711,-151.0,0.00024558,7]
[365070142,1749438650725,-151.0,0.00024558,7]
[365070143,1749438650739,-151.0,0.00024558,7]
[365070144,1749438650753,-151.0,0.00024558,7]
[365070145,1749438650767,-151.0,0.00024558,7]
[365070146,1749438650781,-151.0,0.00024558,7]
[365070147,1749438650795,-151.0,0.00024558,7]
[365070148,1749438650809,-151.0,0.00024558,7]
[365070149,1749438650823,-161.191206,0.00024558,7]
[365070150,1749438650839,-151.0,0.00024558,7]
[365070151,1749438650852,-151.0,0.00024558,7]
[365070152,1749438650867,-151.0,0.00024558,7]
[365070153,1749438650881,-152.977418,0.00024558,7]
[365070154,1749438650891,-151.0,0.00024558,7]
[365070155,1749438650901,-151.0,0.00024558,7]
[365070156,1749438650911,-151.0,0.00024558,7]
[365070157,1749438650920,-151.0,0.00024558,7]
[365070158,1749438650930,-151.0,0.00024558,7]
[365070159,1749438650940,-151.0,0.00024558,7]
[365070160,1749438650950,-151.0,0.00024558,7]
[365070161,1749438650959,-151.0,0.00024558,7]
[365070162,1749438650969,-158.208382,0.00024558,7]
[365070163,1749438650979,-151.0,0.00024558,7]
[365070164,1749438650989,-151.0,0.00024558,7]
[365070165,1749438650999,-151.0,0.00024558,7]
[365070166,1749438651009,-151.0,0.00024558,7]
[365070167,1749438651018,-275.42208913,0.00024558,7]
[365070168,1749438651028,-151.0,0.00024558,7]
[365070169,1749438651038,-151.0,0.00024558,7]
[365070170,1749438651049,-151.0,0.00024558,7]
[365070171,1749438651058,-3000.0,0.0002456,2]
[365070172,1749438651069,-212.0,0.0002456,11]
[365070173,1749438651263,-153.10058331,0.00024561,3]
[365070174,1749438651291,-153.0,0.00024561,3]
[365070175,1749438651302,-153.0,0.00024561,3]
[365070176,1749438651312,-153.0,0.00024561,3]
[365070177,1749438651322,-153.67475936,0.00024561,3]
[365070178,1749438651336,-503.14179143,0.00024561,9]
[365070179,1749438651347,-155.0,0.00024561,2]
[365070180,1749438651357,-503.50116418,0.00024561,9]
[365070181,1749438651367,-44954.23786853,0.00024565,2]
[365070182,1749438651377,-7304.40177461,0.00024565,2]
[365070183,1749438651404,-9212.48645147,0.00024565,2]
[365070184,1749438651416,-5829.97253311,0.00024565,2]
[365070185,1749438651440,-437.01982406,0.00024565,2]
[365070186,1749438651496,-498.99241917,0.00019178,2]
[365070187,1749438651507,-364.9269501,0.00023589,2]
[365070188,1749438651517,-353.5891583,0.00023726,2]
[365070189,1749438651527,-573.244939,0.00023726,2]
[365070190,1749438651537,-158.7201836,0.00023726,2]
[365070191,1749438651547,-40391.1168067,0.00024565,2]
[365070192,1749438845215,150.0,0.00017615,2]
[365070194,1749438989036,165.583582,0.00013699,2]
[365070195,1749439357637,243.62489744,0.00017999,2]
[365070196,1749439357664,5308.54311111,0.00017999,2]
[365070197,1749439357689,5308.54311111,0.00017999,2]
[365070198,1749439357720,5308.54311111,0.00017999,2]
[365070199,1749439357743,5308.54311111,0.00017999,2]
[365070200,1749439357767,3422.20265812,0.00017999,2]
[365070201,1749439687222,599.0,0.00018,2]
[365070205,1749439743642,300.0,0.00017999,2]
[365070209,1749439802840,300.0,0.00017999,2]
[365070210,1749439806842,150.0,0.00017558,2]
[365070211,1749439818078,537.34045299,0.00017943,2]
[365070212,1749439818100,2660.66733871,0.00017943,2]
[365070264,1749439833122,-23218.16231775,0.00018,2]
[365070265,1749439833134,-1000.0,0.00018,2]
[365070266,1749439833146,-267.88980492,0.00018,2]
[365070267,1749439833158,-1320.85925227,0.00018,2]
[365070268,1749439833333,-2110.45562966,0.00018,2]
[365070269,1749439833345,-2294.61225376,0.00018,2]
[365070289,1749439838485,-641.00857584,0.00018,2]
[365070290,1749439838499,-2669.93423987,0.00018,2]
[365070291,1749439838541,-64154.19610517,0.00018,2]
[365070292,1749439838551,-1000.0,0.00018274,2]
[365070293,1749439838561,-1000.0,0.00018274,5]
[365070294,1749439838570,-1000.0,0.00018548,2]
[365070295,1749439838580,-1000.0,0.00018548,5]
[365070296,1749439838590,-1000.0,0.00018822,2]
[365070297,1749439838599,-1000.0,0.00018822,5]
[365070298,1749439838609,-272.53979354,0.00018885,2]
[365070299,1749439838619,-209.69506429,0.000189,2]
[365070300,1749439838628,-586.04739631,0.000189,2]
[365070301,1749439838638,-9451.10468411,0.00019096,2]
[365070303,1749439838648,-1000.0,0.00019096,2]
[365070305,1749439838658,-1000.0,0.00019096,5]
[365070307,1749439838668,-586.04739609,0.00019107,2]
[365070309,1749439838679,-150.0,0.00019154,2]
[365070311,1749439838688,-300.0,0.00019176,2]
[365070314,1749439838699,-430.0,0.00019178,2]
[365070316,1749439838708,-360.0,0.00019178,2]
[365070318,1749439838718,-440.0,0.00019178,2]
[365070320,1749439838728,-440.0,0.00019178,2]
[365070322,1749439838738,-430.0,0.00019178,2]
[365070324,1749439838747,-440.0,0.00019178,2]
[365070326,1749439838757,-430.0,0.00019178,2]
[365070328,1749439838767,-447.10320258,0.00019178,2]
[365070330,1749439838778,-440.0,0.00019178,2]
[365070332,1749439838787,-430.0,0.00019178,2]
[365070334,1749439838797,-430.0,0.00019178,2]
[365070336,1749439838806,-154.89348063,0.00019178,2]
[365070338,1749439838815,-426.16956565,0.00019178,2]
[365070340,1749439838826,-430.0,0.00019178,2]
[365070342,1749439838836,-430.0,0.00019178,2]
[365070344,1749439838846,-430.0,0.00019178,2]
[365070346,1749439838855,-440.0,0.00019178,2]
[365070348,1749439838865,-440.0,0.00019178,2]
[365070350,1749439838874,-440.0,0.00019178,2]
[365070352,1749439838884,-406.99619169,0.00019178,2]
[365070355,1749439838894,-430.0,0.00019178,2]
[365070357,1749439838907,-440.0,0.00019178,2]
[365070359,1749439838916,-440.0,0.00019178,2]
[365070361,1749439838925,-440.0,0.00019178,2]
[365070363,1749439838935,-440.0,0.00019178,2]
[365070365,1749439838945,-372.46185574,0.00019178,2]
[365070367,1749439838955,-671.04,0.00019178,2]
[365070369,1749439838964,-440.0,0.00019178,2]
[365070371,1749439838974,-320.0,0.00019178,2]
[365070373,1749439838983,-440.0,0.00019178,2]
[365070375,1749439838994,-440.0,0.00019178,2]
[365070377,1749439839005,-440.0,0.00019178,2]
[365070379,1749439839014,-440.0,0.00019178,2]
[365070381,1749439839024,-440.0,0.00019178,2]
[365070383,1749439839034,-440.0,0.00019178,2]
[365070385,1749439839043,-440.0,0.00019178,2]
[365070387,1749439839052,-440.0,0.00019178,2]
[365070389,1749439839063,-440.0,0.00019178,2]
[365070391,1749439839072,-440.0,0.00019178,2]
[365070393,1749439839082,-440.0,0.00019178,2]
[365070395,1749439839091,-814.32,0.00019178,2]
[365070398,1749439839101,-440.0,0.00019178,2]
[365070400,1749439839111,-753.47,0.00019178,2]
[365070402,1749439839120,-440.0,0.00019178,2]
[365070404,1749439839130,-689.56,0.00019178,2]
[365070406,1749439839139,-440.0,0.00019178,2]
[365070408,1749439839148,-440.0,0.00019178,2]
[365070410,1749439839159,-781.6,0.00019178,2]
[365070412,1749439839169,-440.0,0.00019178,2]
[365070414,1749439839178,-440.0,0.00019178,2]
[365070416,1749439839187,-440.0,0.00019178,2]
[365070418,1749439839196,-440.0,0.00019178,2]
[365070419,1749439839206,-440.0,0.00019178,2]
[365070421,1749439839216,-440.0,0.00019178,2]
[365070423,1749439839225,-500.0,0.00019178,2]
[365070425,1749439839235,-155.78356095,0.00019178,2]
[365070427,1749439839245,-586.04739609,0.00019314,2]
[365070430,1749439839256,-1000.0,0.0001937,2]
[365070432,1749439839266,-1000.0,0.0001937,5]
[365070434,1749439839275,-350.0,0.00019452,2]
[365070436,1749439839285,-349.61774601,0.00019452,2]
[365070438,1749439839296,-440.0,0.00019452,2]
[365070440,1749439839306,-440.0,0.00019452,2]
[365070442,1749439839315,-440.0,0.00019452,2]
[365070444,1749439839326,-671.04,0.00019452,2]
[365070446,1749439839335,-440.0,0.00019452,2]
[365070448,1749439839344,-440.0,0.00019452,2]
[365070450,1749439839353,-440.0,0.00019452,2]
[365070452,1749439839363,-440.0,0.00019452,2]
[365070454,1749439839374,-440.0,0.00019452,2]
[365070456,1749439839384,-440.0,0.00019452,2]
[365070458,1749439839393,-423.92475586,0.00019452,2]
[365070460,1749439839403,-814.32,0.00019452,2]
[365070462,1749439839413,-753.47,0.00019452,2]
[365070465,1749439839423,-689.56,0.00019452,2]
[365070466,1749439839433,-440.0,0.00019452,2]
[365070467,1749439839443,-781.6,0.00019452,2]
[365070468,1749439839453,-440.0,0.00019452,2]
[365070469,1749439839463,-440.0,0.00019452,2]
[365070470,1749439839473,-440.0,0.00019452,2]
[365070471,1749439839482,-440.0,0.00019452,2]
[365070472,1749439839491,-500.0,0.00019457,2]
[365070473,1749439839501,-586.04739609,0.00019521,2]
[365070474,1749439839511,-420.0,0.00019639,2]
[365070475,1749439839520,-1000.0,0.00019644,2]
[365070476,1749439839530,-1000.0,0.00019644,5]
[365070477,1749439839540,-500.0,0.00019725,2]
[365070478,1749439839551,-537.55726189,0.00019725,2]
[365070479,1749439839561,-537.55726189,0.00019725,2]
[365070480,1749439839571,-560.49211117,0.00019725,2]
[365070481,1749439839581,-537.55726189,0.00019725,2]
[365070482,1749439839591,-537.55726189,0.00019725,2]
[365070483,1749439839601,-537.55726189,0.00019725,2]
[365070484,1749439839611,-537.55726189,0.00019725,2]
[365070485,1749439839621,-537.55726189,0.00019725,2]
[365070486,1749439839631,-537.55726189,0.00019725,2]
[365070487,1749439839642,-537.55726189,0.00019725,2]
[365070488,1749439839652,-537.55726189,0.00019725,2]
[365070489,1749439839662,-537.55726189,0.00019725,2]
[365070490,1749439839672,-537.55726189,0.00019725,2]
[365070491,1749439839683,-537.55726189,0.00019725,2]
[365070492,1749439839693,-537.55726189,0.00019725,2]
[365070493,1749439839703,-537.55726189,0.00019725,2]
[365070494,1749439839713,-537.55726189,0.00019725,2]
[365070495,1749439839723,-440.0,0.00019726,2]
[365070496,1749439839735,-440.0,0.00019726,2]
[365070497,1749439839745,-440.0,0.00019726,2]
[365070498,1749439839755,-671.04,0.00019726,2]
[365070499,1749439839765,-440.0,0.00019726,2]
[365070500,1749439839774,-440.0,0.00019726,2]
[365070501,1749439839784,-440.0,0.00019726,2]
[365070502,1749439839794,-440.0,0.00019726,2]
[365070503,1749439839803,-237.01514507,0.00019726,2]
[365070504,1749439839813,-440.0,0.00019726,2]
[365070505,1749439839823,-814.32,0.00019726,2]
[365070506,1749439839833,-753.47,0.00019726,2]
[365070507,1749439839843,-689.56,0.00019726,2]
[365070508,1749439839854,-440.0,0.00019726,2]
[365070509,1749439839864,-781.6,0.00019726,2]
[365070510,1749439839874,-440.0,0.00019726,2]
[365070511,1749439839884,-440.0,0.00019726,2]
[365070512,1749439839894,-440.0,0.00019726,2]
[365070513,1749439839910,-586.04739609,0.00019728,2]
[365070514,1749439839921,-502.59779772,0.0001984,2]
[365070515,1749439839931,-500.0,0.00019883,2]
[365070516,1749439839941,-1000.0,0.00019918,2]
[365070517,1749439839952,-1000.0,0.00019918,5]
[365070518,1749439839962,-586.04739609,0.00019934,2]
[365070519,1749439839972,-440.0,0.0002,2]
[365070520,1749439839983,-440.0,0.0002,2]
[365070521,1749439839993,-440.0,0.0002,2]
[365070522,1749439840004,-671.04,0.0002,2]
[365070523,1749439840013,-440.0,0.0002,2]
[365070524,1749439840025,-440.0,0.0002,2]
[365070525,1749439840035,-440.0,0.0002,2]
[365070526,1749439840046,-440.0,0.0002,2]
[365070527,1749439840056,-440.0,0.0002,2]
[365070528,1749439840066,-814.32,0.0002,2]
[365070529,1749439840075,-753.47,0.0002,2]
[365070530,1749439840086,-689.56,0.0002,2]
[365070531,1749439840095,-440.0,0.0002,2]
[365070532,1749439840105,-781.6,0.0002,2]
[365070533,1749439840116,-243.88254943,0.0002,5]
[365070534,1749439840126,-440.0,0.0002,2]
[365070535,1749439840135,-440.0,0.0002,2]
[365070536,1749439840145,-440.0,0.0002,2]
[365070537,1749439840155,-503.91009548,0.00020005,2]
[365070538,1749439840165,-163.6,0.00020131,2]
[365070539,1749439840175,-586.04739609,0.00020141,2]
[365070540,1749439840185,-165.583582,0.00020187,2]
[365070541,1749439840195,-1000.0,0.00020192,2]
[365070542,1749439840205,-1000.0,0.00020192,5]
[365070544,1749439840215,-440.0,0.00020273,2]
[365070545,1749439840226,-440.0,0.00020273,2]
[365070546,1749439840236,-440.0,0.00020273,2]
[365070547,1749439840247,-671.04,0.00020273,2]
[365070548,1749439840257,-440.0,0.00020273,2]
[365070549,1749439840267,-440.0,0.00020273,2]
[365070550,1749439840277,-440.0,0.00020273,2]
[365070552,1749439840287,-440.0,0.00020273,2]
[365070554,1749439840296,-440.0,0.00020273,2]
[365070556,1749439840306,-814.32,0.00020273,2]
[365070557,1749439840316,-753.47,0.00020273,2]
[365070558,1749439840325,-689.56,0.00020273,2]
[365070559,1749439840336,-781.6,0.00020273,2]
[365070560,1749439840345,-440.0,0.00020273,2]
[365070561,1749439840355,-440.0,0.00020273,2]
[365070562,1749439840366,-440.0,0.00020273,2]
[365070563,1749439840375,-586.04739609,0.00020348,3]
[365070564,1749439840385,-1000.0,0.00020466,2]
[365070565,1749439840395,-1000.0,0.00020466,5]
[365070566,1749439840404,-440.0,0.00020547,2]
[365070567,1749439840415,-440.0,0.00020547,2]
[365070568,1749439840424,-440.0,0.00020547,2]
[365070569,1749439840433,-671.04,0.00020547,2]
[365070570,1749439840443,-440.0,0.00020547,2]
[365070572,1749439840453,-440.0,0.00020547,2]
[365070574,1749439840464,-440.0,0.00020547,2]
[365070575,1749439840474,-440.0,0.00020547,2]
[365070576,1749439840483,-440.0,0.00020547,2]
[365070577,1749439840492,-814.32,0.00020547,2]
[365070578,1749439840502,-753.47,0.00020547,2]
[365070579,1749439840511,-689.56,0.00020547,2]
[365070580,1749439840521,-781.6,0.00020547,2]
[365070581,1749439840531,-440.0,0.00020547,2]
[365070582,1749439840541,-440.0,0.00020547,2]
[365070583,1749439840551,-440.0,0.00020547,2]
[365070584,1749439840560,-586.04739609,0.00020555,3]
[365070585,1749439840570,-11856.04170836,0.00020694,2]
[365070586,1749439840580,-229.64266968,0.00020695,2]
[365070587,1749439840590,-160.0,0.00020695,2]
[365070588,1749439840600,-217.16985078,0.00020695,2]
[365070589,1749439840610,-834.7738823,0.00020695,2]
[365070590,1749439840620,-213.08899333,0.00020695,2]
[365070591,1749439840631,-160.0,0.00020697,2]
[365070592,1749439840641,-842.5625,0.00020697,2]
[365070593,1749439840651,-1000.0,0.0002074,2]
[365070594,1749439840661,-1000.0,0.0002074,5]
[365070595,1749439840671,-150.0,0.0002075,2]
[365070596,1749439840680,-586.04739609,0.00020762,3]
[365070597,1749439840691,-700.0,0.00020765,2]
[365070598,1749439840701,-440.0,0.00020821,2]
[365070599,1749439840711,-440.0,0.00020821,2]
[365070600,1749439840722,-440.0,0.00020821,2]
[365070601,1749439840732,-671.04,0.00020821,2]
[365070602,1749439840744,-440.0,0.00020821,2]
[365070603,1749439840755,-440.0,0.00020821,2]
[365070604,1749439840765,-440.0,0.00020821,2]
[365070605,1749439840774,-440.0,0.00020821,2]
[365070606,1749439840784,-440.0,0.00020821,2]
[365070607,1749439840794,-814.32,0.00020821,2]
[365070608,1749439840803,-753.47,0.00020821,2]
[365070609,1749439840814,-689.56,0.00020821,2]
[365070610,1749439840824,-781.6,0.00020821,2]
[365070611,1749439840834,-440.0,0.00020821,2]
[365070612,1749439840844,-440.0,0.00020821,2]
[365070613,1749439840854,-440.0,0.00020821,2]
[365070614,1749439840864,-785.59,0.000209,2]
[365070615,1749439840875,-586.04739609,0.00020969,4]
[365070616,1749439840885,-440.0,0.00021095,2]
[365070617,1749439840894,-440.0,0.00021095,2]
[365070618,1749439840905,-671.04,0.00021095,2]
[365070619,1749439840917,-440.0,0.00021095,2]
[365070620,1749439840928,-440.0,0.00021095,2]
[365070621,1749439840937,-440.0,0.00021095,2]
[365070622,1749439840947,-440.0,0.00021095,2]
[365070623,1749439840957,-440.0,0.00021095,2]
[365070624,1749439840967,-814.32,0.00021095,2]
[365070625,1749439840978,-753.47,0.00021095,2]
[365070626,1749439840988,-689.56,0.00021095,2]
[365070627,1749439840998,-781.6,0.00021095,2]
[365070628,1749439841008,-440.0,0.00021095,2]
[365070629,1749439841018,-440.0,0.00021095,2]
[365070630,1749439841029,-440.0,0.00021095,2]
[365070631,1749439841041,-586.04739609,0.00021176,4]
[365070632,1749439841051,-440.0,0.00021369,2]
[365070633,1749439841062,-440.0,0.00021369,2]
[365070634,1749439841072,-671.04,0.00021369,2]
[365070635,1749439841081,-440.0,0.00021369,2]
[365070636,1749439841091,-440.0,0.00021369,2]
[365070637,1749439841101,-440.0,0.00021369,2]
[365070638,1749439841111,-440.0,0.00021369,2]
[365070639,1749439841120,-440.0,0.00021369,2]
[365070640,1749439841130,-814.32,0.00021369,2]
[365070641,1749439841139,-753.47,0.00021369,2]
[365070642,1749439841149,-689.56,0.00021369,2]
[365070643,1749439841159,-781.6,0.00021369,2]
[365070644,1749439841169,-361.9390316,0.00021369,2]
[365070645,1749439841181,-440.0,0.00021369,2]
[365070646,1749439841191,-440.0,0.00021369,2]
[365070647,1749439841201,-586.04739609,0.00021383,5]
[365070648,1749439841211,-587.0,0.00021428,2]
[365070649,1749439841223,-4415.0,0.000215,2]
[365070650,1749439841233,-586.04739609,0.0002159,5]
[365070651,1749439841244,-440.0,0.00021643,2]
[365070652,1749439841368,-440.0,0.00021643,2]
[365070653,1749439841378,-671.04,0.00021643,2]
[365070654,1749439841388,-440.0,0.00021643,2]
[365070655,1749439841397,-440.0,0.00021643,2]
[365070656,1749439841407,-440.0,0.00021643,2]
[365070657,1749439841416,-440.0,0.00021643,2]
[365070658,1749439841426,-440.0,0.00021643,2]